[Event "Titled Tuesday Blitz May 23 Late 2023"]
[White "Nakamura, Hikaru"]
[Black "Paravyan, David"]
[WhiteFideId "2016192"]
[BlackFideId "4194985"]
[WhiteElo "2885"]
[BlackElo "2563"]
[Result "1-0"]
[Round "06"]
[TimeControl "180+2"]
[Date "2023.05.23"]
[WhiteClock "0:00:14"]
[BlackClock "0:00:00"]

1. e4 {[%clk 0:03:00]}  e5 {[%clk 0:03:00]} 2. f4 {[%clk 0:03:01]}  exf4 {[%clk 0:02:59]} 3. Nf3 {[%clk 0:03:01]}  h6 {[%clk 0:02:59]} 4. d4 {[%clk 0:02:55]}  g5 {[%clk 0:03:00]} 5. g3 {[%clk 0:02:56]}  fxg3 {[%clk 0:03:00]} 6. hxg3 {[%clk 0:02:57]}  Bg7 {[%clk 0:03:00]} 7. Nc3 {[%clk 0:02:57]}  Nc6 {[%clk 0:02:59]} 8. Be3 {[%clk 0:02:57]}  d6 {[%clk 0:03:00]} 9. Qd3 {[%clk 0:02:42]}  Bg4 {[%clk 0:02:59]} 10. Be2 {[%clk 0:02:42]}  Qd7 {[%clk 0:02:50]} 11. O-O-O {[%clk 0:02:37]}  Nge7 {[%clk 0:02:48]} 12. Kb1 {[%clk 0:02:10]}  a6 {[%clk 0:02:47]} 13. Rdf1 {[%clk 0:02:08]}  O-O-O {[%clk 0:02:46]} 14. d5 {[%clk 0:02:00]}  Ne5 {[%clk 0:02:20]} 15. Qd4 {[%clk 0:02:00]}  c5 {[%clk 0:02:05]} 16. dxc6 {[%clk 0:02:00]}  N7xc6 {[%clk 0:02:05]} 17. Qd1 {[%clk 0:02:01]}  Nxf3 {[%clk 0:02:02]} 18. Nd5 {[%clk 0:01:58]}  Kb8 {[%clk 0:01:56]} 19. Bxf3 {[%clk 0:01:58]}  Bxf3 {[%clk 0:01:55]} 20. Rxf3 {[%clk 0:01:57]}  Ne5 {[%clk 0:01:54]} 21. Rf5 {[%clk 0:01:57]}  Rhe8 {[%clk 0:01:43]} 22. Bd4 {[%clk 0:01:51]}  Qc6 {[%clk 0:01:04]} 23. b3 {[%clk 0:01:45]}  Rc8 {[%clk 0:00:59]} 24. Rhf1 {[%clk 0:01:43]}  f6 {[%clk 0:00:52]} 25. c4 {[%clk 0:01:20]}  h5 {[%clk 0:00:33]} 26. Qxh5 {[%clk 0:01:08]}  Nxc4 {[%clk 0:00:33]} 27. bxc4 {[%clk 0:01:08]}  Qxc4 {[%clk 0:00:25]} 28. Qd1 {[%clk 0:01:05]}  Rxe4 {[%clk 0:00:22]} 29. Bb2 {[%clk 0:01:05]}  Re2 {[%clk 0:00:22]} 30. R5f2 {[%clk 0:00:32]}  Qe4+ {[%clk 0:00:12]} 31. Ka1 {[%clk 0:00:32]}  Rxb2 {[%clk 0:00:11]} 32. Rxb2 {[%clk 0:00:19]}  f5 {[%clk 0:00:11]} 33. Nf6 {[%clk 0:00:15]}  Qe6 {[%clk 0:00:02]} 34. Qb3 {[%clk 0:00:12]}  Qxb3 {[%clk 0:00:02]} 35. Rxb3 {[%clk 0:00:13]}  Bxf6+ {[%clk 0:00:03]} 36. Kb1 {[%clk 0:00:14]}  Rc5 {[%clk 0:00:03]} 37. Rh1 {[%clk 0:00:14]}  Be5 {[%clk 0:00:02]} 38. Rh7 {[%clk 0:00:12]}  Rb5 {[%clk 0:00:02]} 39. Rxb5 {[%clk 0:00:11]}  axb5 {[%clk 0:00:03]} 40. Rf7 {[%clk 0:00:12]}  f4 {[%clk 0:00:02]} 41. g4 {[%clk 0:00:11]}  Bd4 {[%clk 0:00:02]} 42. Rf5 {[%clk 0:00:11]}  Be3 {[%clk 0:00:01]} 43. Rxg5 {[%clk 0:00:11]}  f3 {[%clk 0:00:01]} 44. Rf5 {[%clk 0:00:12]}  f2 {[%clk 0:00:02]} 45. Kc2 {[%clk 0:00:13]}  d5 {[%clk 0:00:01]} 46. Kd3 {[%clk 0:00:13]}  d4 {[%clk 0:00:02]} 47. Ke2 {[%clk 0:00:13]}  Kc7 {[%clk 0:00:02]} 48. g5 {[%clk 0:00:14]}  Kd6 {[%clk 0:00:01]} 49. g6 {[%clk 0:00:14]}  Bh6 {[%clk 0:00:02]} 50. Rxf2 {[%clk 0:00:14]}  Ke5 {[%clk 0:00:00]} 51. Kd3 {[%clk 0:00:14]} 1-0


[Site "https://www.chess.com"]

[Event "Titled Tuesday Blitz May 23 Late 2023"]
[White "Naroditsky, Daniel"]
[Black "Zakhartsov, Vladimir"]
[WhiteFideId "2026961"]
[BlackFideId "4145097"]
[WhiteElo "2633"]
[BlackElo "2495"]
[Result "0-1"]
[Round "06"]
[TimeControl "180+2"]
[Date "2023.05.23"]
[WhiteClock "0:00:17"]
[BlackClock "0:00:13"]

1. e4 {[%clk 0:02:59]}  c5 {[%clk 0:02:59]} 2. c3 {[%clk 0:02:59]}  d5 {[%clk 0:02:58]} 3. exd5 {[%clk 0:03:00]}  Qxd5 {[%clk 0:02:58]} 4. d4 {[%clk 0:03:01]}  Nf6 {[%clk 0:02:57]} 5. Nf3 {[%clk 0:03:01]}  Bg4 {[%clk 0:02:52]} 6. Nbd2 {[%clk 0:03:01]}  e6 {[%clk 0:02:49]} 7. Qa4+ {[%clk 0:02:51]}  Nbd7 {[%clk 0:02:33]} 8. Bc4 {[%clk 0:02:41]}  Qd6 {[%clk 0:01:47]} 9. Ne5 {[%clk 0:02:36]}  cxd4 {[%clk 0:01:46]} 10. cxd4 {[%clk 0:02:18]}  Qxd4 {[%clk 0:01:38]} 11. Nxg4 {[%clk 0:01:55]}  Nxg4 {[%clk 0:01:10]} 12. O-O {[%clk 0:01:55]}  Qd6 {[%clk 0:00:31]} 13. Nf3 {[%clk 0:01:51]}  Qb4 {[%clk 0:00:30]} 14. Qc2 {[%clk 0:00:33]}  Rc8 {[%clk 0:00:29]} 15. b3 {[%clk 0:00:34]}  b5 {[%clk 0:00:28]} 16. a3 {[%clk 0:00:25]}  Qc5 {[%clk 0:00:25]} 17. h3 {[%clk 0:00:19]}  Ngf6 {[%clk 0:00:23]} 18. Be3 {[%clk 0:00:19]}  Qc7 {[%clk 0:00:22]} 19. Nd4 {[%clk 0:00:06]}  bxc4 {[%clk 0:00:22]} 20. Nb5 {[%clk 0:00:07]}  Qb7 {[%clk 0:00:20]} 21. Nxa7 {[%clk 0:00:08]}  Ra8 {[%clk 0:00:19]} 22. Qxc4 {[%clk 0:00:08]}  Bd6 {[%clk 0:00:16]} 23. Nb5 {[%clk 0:00:08]}  Bb8 {[%clk 0:00:13]} 24. Bc5 {[%clk 0:00:06]}  Qc6 {[%clk 0:00:10]} 25. Bb4 {[%clk 0:00:02]}  Qxc4 {[%clk 0:00:09]} 26. bxc4 {[%clk 0:00:03]}  Ne5 {[%clk 0:00:09]} 27. Rac1 {[%clk 0:00:02]}  Nc6 {[%clk 0:00:09]} 28. Bc5 {[%clk 0:00:02]}  Nd7 {[%clk 0:00:09]} 29. Bb4 {[%clk 0:00:02]}  f6 {[%clk 0:00:08]} 30. Rfd1 {[%clk 0:00:02]}  Nb6 {[%clk 0:00:06]} 31. Bc5 {[%clk 0:00:02]}  Na4 {[%clk 0:00:06]} 32. Bd6 {[%clk 0:00:03]}  Kf7 {[%clk 0:00:06]} 33. Rd2 {[%clk 0:00:02]}  Rd8 {[%clk 0:00:05]} 34. Rcd1 {[%clk 0:00:02]}  Bxd6 {[%clk 0:00:05]} 35. Rxd6 {[%clk 0:00:02]}  Rxd6 {[%clk 0:00:04]} 36. Rxd6 {[%clk 0:00:02]}  Ne5 {[%clk 0:00:04]} 37. Rd4 {[%clk 0:00:01]}  Nc5 {[%clk 0:00:04]} 38. f4 {[%clk 0:00:01]}  Ned7 {[%clk 0:00:04]} 39. Nd6+ {[%clk 0:00:01]}  Ke7 {[%clk 0:00:04]} 40. Nb5 {[%clk 0:00:02]}  Ra4 {[%clk 0:00:04]} 41. Kf2 {[%clk 0:00:02]}  Nb6 {[%clk 0:00:03]} 42. Nd6 {[%clk 0:00:02]}  Rxa3 {[%clk 0:00:03]} 43. g4 {[%clk 0:00:02]}  Ra2+ {[%clk 0:00:03]} 44. Kf1 {[%clk 0:00:02]}  Ra3 {[%clk 0:00:03]} 45. Kg2 {[%clk 0:00:03]}  Rd3 {[%clk 0:00:03]} 46. Rxd3 {[%clk 0:00:02]}  Nxd3 {[%clk 0:00:04]} 47. Ne4 {[%clk 0:00:03]}  Nxc4 {[%clk 0:00:04]} 48. Kf3 {[%clk 0:00:04]}  Nb4 {[%clk 0:00:04]} 49. Nc3 {[%clk 0:00:04]}  Nd5 {[%clk 0:00:04]} 50. Nb5 {[%clk 0:00:05]}  Nd6 {[%clk 0:00:04]} 51. Nd4 {[%clk 0:00:05]}  Nxf4 {[%clk 0:00:03]} 52. Nc6+ {[%clk 0:00:06]}  Kd7 {[%clk 0:00:04]} 53. Nb8+ {[%clk 0:00:06]}  Kc7 {[%clk 0:00:04]} 54. Na6+ {[%clk 0:00:07]}  Kb6 {[%clk 0:00:05]} 55. Nb8 {[%clk 0:00:07]}  Nxh3 {[%clk 0:00:05]} 56. Nd7+ {[%clk 0:00:07]}  Kc7 {[%clk 0:00:05]} 57. Nf8 {[%clk 0:00:08]}  Ng5+ {[%clk 0:00:05]} 58. Kg3 {[%clk 0:00:09]}  Kd8 {[%clk 0:00:05]} 59. Kh4 {[%clk 0:00:10]}  Ke7 {[%clk 0:00:05]} 60. Ng6+ {[%clk 0:00:06]}  hxg6 {[%clk 0:00:05]} 61. Kg3 {[%clk 0:00:06]}  e5 {[%clk 0:00:06]} 62. Kh4 {[%clk 0:00:06]}  Ngf7 {[%clk 0:00:06]} 63. Kg3 {[%clk 0:00:07]}  f5 {[%clk 0:00:07]} 64. Kh4 {[%clk 0:00:08]}  fxg4 {[%clk 0:00:07]} 65. Kxg4 {[%clk 0:00:09]}  e4 {[%clk 0:00:07]} 66. Kf4 {[%clk 0:00:10]}  Ke6 {[%clk 0:00:08]} 67. Ke3 {[%clk 0:00:10]}  Kd5 {[%clk 0:00:09]} 68. Kf4 {[%clk 0:00:11]}  Kd4 {[%clk 0:00:09]} 69. Kg3 {[%clk 0:00:12]}  Nd8 {[%clk 0:00:10]} 70. Kf4 {[%clk 0:00:13]}  N6b7 {[%clk 0:00:10]} 71. Kg3 {[%clk 0:00:14]}  Kd3 {[%clk 0:00:11]} 72. Kf2 {[%clk 0:00:15]}  Nc6 {[%clk 0:00:11]} 73. Ke1 {[%clk 0:00:15]}  Na7 {[%clk 0:00:12]} 74. Kf1 {[%clk 0:00:16]}  e3 {[%clk 0:00:12]} 75. Ke1 {[%clk 0:00:17]}  e2 {[%clk 0:00:13]} 76. Kf2 {[%clk 0:00:17]}  Kd2 {[%clk 0:00:13]} 0-1


[Site "https://www.chess.com"]

[Event "Titled Tuesday Blitz May 23 Late 2023"]
[White "Remizov, Yaroslav"]
[Black "Grischuk, Alexander"]
[WhiteFideId "34134015"]
[BlackFideId "4126025"]
[WhiteElo "2400"]
[BlackElo "2721"]
[Result "1/2-1/2"]
[Round "06"]
[TimeControl "180+2"]
[Date "2023.05.23"]
[WhiteClock "0:00:03"]
[BlackClock "0:00:05"]

1. e4 {[%clk 0:02:59]}  g6 {[%clk 0:02:58]} 2. d4 {[%clk 0:02:58]}  Bg7 {[%clk 0:02:58]} 3. Nf3 {[%clk 0:02:58]}  d6 {[%clk 0:02:59]} 4. Be3 {[%clk 0:02:58]}  Nf6 {[%clk 0:02:56]} 5. Nc3 {[%clk 0:02:54]}  a6 {[%clk 0:02:56]} 6. Bd3 {[%clk 0:02:43]}  O-O {[%clk 0:02:49]} 7. h3 {[%clk 0:02:41]}  Nc6 {[%clk 0:02:47]} 8. Qd2 {[%clk 0:02:32]}  e5 {[%clk 0:02:46]} 9. d5 {[%clk 0:02:28]}  Ne7 {[%clk 0:02:46]} 10. Bh6 {[%clk 0:02:20]}  c6 {[%clk 0:02:43]} 11. Bxg7 {[%clk 0:02:16]}  Kxg7 {[%clk 0:02:43]} 12. dxc6 {[%clk 0:02:16]}  bxc6 {[%clk 0:02:43]} 13. O-O-O {[%clk 0:02:08]}  Bb7 {[%clk 0:01:38]} 14. h4 {[%clk 0:01:45]}  h5 {[%clk 0:01:34]} 15. Be2 {[%clk 0:01:26]}  c5 {[%clk 0:00:42]} 16. Qxd6 {[%clk 0:01:08]}  Qxd6 {[%clk 0:00:43]} 17. Rxd6 {[%clk 0:01:08]}  Nxe4 {[%clk 0:00:42]} 18. Rd7 {[%clk 0:00:35]}  Nxc3 {[%clk 0:00:42]} 19. bxc3 {[%clk 0:00:36]}  Bxf3 {[%clk 0:00:42]} 20. Bxf3 {[%clk 0:00:37]}  Rae8 {[%clk 0:00:43]} 21. Ra7 {[%clk 0:00:33]}  Nf5 {[%clk 0:00:42]} 22. Rxa6 {[%clk 0:00:31]}  e4 {[%clk 0:00:41]} 23. Be2 {[%clk 0:00:31]}  e3 {[%clk 0:00:41]} 24. fxe3 {[%clk 0:00:30]}  Ng3 {[%clk 0:00:39]} 25. Rh3 {[%clk 0:00:23]}  Nxe2+ {[%clk 0:00:28]} 26. Kd2 {[%clk 0:00:23]}  Ng1 {[%clk 0:00:29]} 27. Rh1 {[%clk 0:00:22]}  Rd8+ {[%clk 0:00:29]} 28. Ke1 {[%clk 0:00:20]}  Rfe8 {[%clk 0:00:30]} 29. Kf2 {[%clk 0:00:13]}  Rd2+ {[%clk 0:00:29]} 30. Kxg1 {[%clk 0:00:13]}  Rxe3 {[%clk 0:00:30]} 31. Rh3 {[%clk 0:00:09]}  Rxh3 {[%clk 0:00:30]} 32. gxh3 {[%clk 0:00:09]}  Rxc2 {[%clk 0:00:31]} 33. a4 {[%clk 0:00:07]}  Rxc3 {[%clk 0:00:30]} 34. Kg2 {[%clk 0:00:08]}  Ra3 {[%clk 0:00:22]} 35. Ra7 {[%clk 0:00:07]}  Kf6 {[%clk 0:00:21]} 36. a5 {[%clk 0:00:06]}  c4 {[%clk 0:00:09]} 37. Rc7 {[%clk 0:00:06]}  Rxa5 {[%clk 0:00:07]} 38. Rxc4 {[%clk 0:00:06]}  Kf5 {[%clk 0:00:06]} 39. Kg3 {[%clk 0:00:06]}  Rd5 {[%clk 0:00:06]} 40. Rf4+ {[%clk 0:00:06]}  Ke6 {[%clk 0:00:07]} 41. Re4+ {[%clk 0:00:06]}  Kd6 {[%clk 0:00:06]} 42. Rf4 {[%clk 0:00:06]}  f5 {[%clk 0:00:04]} 43. Ra4 {[%clk 0:00:06]}  Ke5 {[%clk 0:00:04]} 44. Kf3 {[%clk 0:00:05]}  Rd3+ {[%clk 0:00:04]} 45. Kg2 {[%clk 0:00:06]}  Rd4 {[%clk 0:00:04]} 46. Ra6 {[%clk 0:00:06]}  Rd6 {[%clk 0:00:04]} 47. Ra4 {[%clk 0:00:05]}  f4 {[%clk 0:00:02]} 48. Ra5+ {[%clk 0:00:05]}  Ke4 {[%clk 0:00:03]} 49. Ra2 {[%clk 0:00:05]}  Rd3 {[%clk 0:00:02]} 50. Kh2 {[%clk 0:00:04]}  Kf3 {[%clk 0:00:02]} 51. Rg2 {[%clk 0:00:04]}  Re3 {[%clk 0:00:02]} 52. Rxg6 {[%clk 0:00:04]}  Kf2 {[%clk 0:00:02]} 53. Rg2+ {[%clk 0:00:03]}  Kf1 {[%clk 0:00:02]} 54. Rg5 {[%clk 0:00:03]}  f3 {[%clk 0:00:02]} 55. Rxh5 {[%clk 0:00:04]}  f2 {[%clk 0:00:03]} 56. Rf5 {[%clk 0:00:03]}  Re7 {[%clk 0:00:03]} 57. Kg3 {[%clk 0:00:01]}  Rh7 {[%clk 0:00:02]} 58. Kg4 {[%clk 0:00:01]}  Kg2 {[%clk 0:00:02]} 59. h5 {[%clk 0:00:02]}  f1=Q {[%clk 0:00:02]} 60. Rxf1 {[%clk 0:00:02]}  Kxf1 {[%clk 0:00:03]} 61. Kg5 {[%clk 0:00:03]}  Kg2 {[%clk 0:00:04]} 62. Kg6 {[%clk 0:00:03]}  Rxh5 {[%clk 0:00:04]} 63. Kxh5 {[%clk 0:00:03]}  Kxh3 {[%clk 0:00:05]} 1/2-1/2


[Site "https://www.chess.com"]

[Event "Titled Tuesday Blitz May 23 Late 2023"]
[White "Duda, Jan-Krzysztof"]
[Black "Fernandez Guillen, Ernesto J."]
[WhiteFideId "1170546"]
[BlackFideId "3512428"]
[WhiteElo "2790"]
[BlackElo "2429"]
[Result "1-0"]
[Round "06"]
[TimeControl "180+2"]
[Date "2023.05.23"]
[WhiteClock "0:00:02"]
[BlackClock "0:00:00"]

1. d4 {[%clk 0:03:00]}  Nf6 {[%clk 0:02:54]} 2. Bf4 {[%clk 0:03:01]}  b6 {[%clk 0:02:50]} 3. e3 {[%clk 0:02:58]}  Bb7 {[%clk 0:02:51]} 4. c4 {[%clk 0:02:58]}  e6 {[%clk 0:02:51]} 5. a3 {[%clk 0:02:55]}  Be7 {[%clk 0:02:51]} 6. Nc3 {[%clk 0:02:55]}  O-O {[%clk 0:02:52]} 7. Nf3 {[%clk 0:02:49]}  d5 {[%clk 0:02:52]} 8. Qc2 {[%clk 0:02:42]}  c5 {[%clk 0:02:51]} 9. O-O-O {[%clk 0:02:36]}  Nbd7 {[%clk 0:02:47]} 10. Kb1 {[%clk 0:02:31]}  a6 {[%clk 0:02:45]} 11. cxd5 {[%clk 0:02:27]}  exd5 {[%clk 0:02:43]} 12. Ne5 {[%clk 0:02:25]}  Rc8 {[%clk 0:02:41]} 13. f3 {[%clk 0:02:09]}  b5 {[%clk 0:02:32]} 14. dxc5 {[%clk 0:02:09]}  Bxc5 {[%clk 0:02:28]} 15. Qf5 {[%clk 0:01:55]}  Nb6 {[%clk 0:02:12]} 16. Bd3 {[%clk 0:01:47]}  g6 {[%clk 0:02:05]} 17. Qg5 {[%clk 0:01:35]}  Nh5 {[%clk 0:02:05]} 18. Qh6 {[%clk 0:01:32]}  Nxf4 {[%clk 0:02:02]} 19. exf4 {[%clk 0:01:33]}  Qf6 {[%clk 0:01:59]} 20. Ng4 {[%clk 0:01:19]}  Qg7 {[%clk 0:01:51]} 21. Qh4 {[%clk 0:01:19]}  f5 {[%clk 0:01:39]} 22. Ne5 {[%clk 0:01:17]}  b4 {[%clk 0:01:29]} 23. axb4 {[%clk 0:01:12]}  Bxb4 {[%clk 0:01:30]} 24. Na2 {[%clk 0:01:09]}  Be7 {[%clk 0:00:53]} 25. Qg3 {[%clk 0:01:08]}  Bf6 {[%clk 0:00:49]} 26. h4 {[%clk 0:01:01]}  Rfe8 {[%clk 0:00:49]} 27. h5 {[%clk 0:00:47]}  Bxe5 {[%clk 0:00:46]} 28. fxe5 {[%clk 0:00:48]}  Qxe5 {[%clk 0:00:40]} 29. f4 {[%clk 0:00:34]}  Qg7 {[%clk 0:00:38]} 30. Rh3 {[%clk 0:00:27]}  Na4 {[%clk 0:00:36]} 31. Qf2 {[%clk 0:00:27]}  d4 {[%clk 0:00:32]} 32. Bxf5 {[%clk 0:00:21]}  Rc6 {[%clk 0:00:11]} 33. Bc2 {[%clk 0:00:12]}  Nxb2 {[%clk 0:00:09]} 34. Bb3+ {[%clk 0:00:11]}  Kf8 {[%clk 0:00:09]} 35. Qxb2 {[%clk 0:00:10]}  Rb6 {[%clk 0:00:08]} 36. Qa3+ {[%clk 0:00:08]}  Re7 {[%clk 0:00:08]} 37. hxg6 {[%clk 0:00:08]}  Be4+ {[%clk 0:00:08]} 38. Kb2 {[%clk 0:00:07]}  d3+ {[%clk 0:00:08]} 39. Nc3 {[%clk 0:00:07]}  Rc6 {[%clk 0:00:06]} 40. Qb4 {[%clk 0:00:04]}  a5 {[%clk 0:00:05]} 41. Qxa5 {[%clk 0:00:03]}  Rec7 {[%clk 0:00:05]} 42. Rxh7 {[%clk 0:00:01]}  Qxc3+ {[%clk 0:00:03]} 43. Qxc3 {[%clk 0:00:01]}  Rxc3 {[%clk 0:00:04]} 44. g7+ {[%clk 0:00:01]}  Rxg7 {[%clk 0:00:00]} 45. Rh8+ {[%clk 0:00:02]} 1-0


[Site "https://www.chess.com"]

[Event "Titled Tuesday Blitz May 23 Late 2023"]
[White "Milikow, Yoav"]
[Black "Andreikin, Dmitry"]
[WhiteFideId "2822237"]
[BlackFideId "4158814"]
[WhiteElo "2410"]
[BlackElo "2736"]
[Result "0-1"]
[Round "06"]
[TimeControl "180+2"]
[Date "2023.05.23"]
[WhiteClock "0:00:01"]
[BlackClock "0:00:24"]

1. d4 {[%clk 0:02:45]}  g6 {[%clk 0:02:58]} 2. c4 {[%clk 0:02:44]}  Bg7 {[%clk 0:02:59]} 3. Nc3 {[%clk 0:02:44]}  c5 {[%clk 0:02:58]} 4. d5 {[%clk 0:02:45]}  f5 {[%clk 0:02:57]} 5. h4 {[%clk 0:02:34]}  Nf6 {[%clk 0:02:52]} 6. h5 {[%clk 0:02:27]}  Nxh5 {[%clk 0:02:50]} 7. e4 {[%clk 0:02:27]}  d6 {[%clk 0:02:43]} 8. exf5 {[%clk 0:02:22]}  Nf6 {[%clk 0:02:35]} 9. fxg6 {[%clk 0:02:22]}  hxg6 {[%clk 0:02:35]} 10. Rxh8+ {[%clk 0:02:22]}  Bxh8 {[%clk 0:02:36]} 11. Bd3 {[%clk 0:02:23]}  Bf5 {[%clk 0:02:35]} 12. Bxf5 {[%clk 0:02:21]}  gxf5 {[%clk 0:02:36]} 13. Nge2 {[%clk 0:02:12]}  Na6 {[%clk 0:02:23]} 14. Nf4 {[%clk 0:02:05]}  Qa5 {[%clk 0:02:17]} 15. Ne6 {[%clk 0:01:59]}  Nc7 {[%clk 0:02:01]} 16. Qe2 {[%clk 0:01:17]}  Nfxd5 {[%clk 0:01:29]} 17. cxd5 {[%clk 0:00:41]}  Bxc3+ {[%clk 0:01:28]} 18. bxc3 {[%clk 0:00:34]}  Qxc3+ {[%clk 0:01:28]} 19. Qd2 {[%clk 0:00:16]}  Qe5+ {[%clk 0:01:23]} 20. Qe3 {[%clk 0:00:15]}  Qxe3+ {[%clk 0:01:13]} 21. fxe3 {[%clk 0:00:12]}  Nxd5 {[%clk 0:01:11]} 22. Ng7+ {[%clk 0:00:12]}  Kd7 {[%clk 0:01:09]} 23. Nxf5 {[%clk 0:00:13]}  Rg8 {[%clk 0:01:09]} 24. Nh4 {[%clk 0:00:10]}  Rg4 {[%clk 0:01:08]} 25. Nf3 {[%clk 0:00:09]}  Rxg2 {[%clk 0:01:08]} 26. a4 {[%clk 0:00:06]}  Nb4 {[%clk 0:01:02]} 27. Kf1 {[%clk 0:00:05]}  Rc2 {[%clk 0:01:00]} 28. Bd2 {[%clk 0:00:04]}  a5 {[%clk 0:00:59]} 29. Ke2 {[%clk 0:00:04]}  e5 {[%clk 0:00:53]} 30. Ne1 {[%clk 0:00:04]}  Rb2 {[%clk 0:00:52]} 31. Kd1 {[%clk 0:00:05]}  Kc6 {[%clk 0:00:38]} 32. Kc1 {[%clk 0:00:05]}  Rb3 {[%clk 0:00:38]} 33. Rb1 {[%clk 0:00:03]}  Ra3 {[%clk 0:00:37]} 34. Kb2 {[%clk 0:00:02]}  Ra2+ {[%clk 0:00:31]} 35. Kc3 {[%clk 0:00:02]}  Nd5+ {[%clk 0:00:26]} 36. Kd3 {[%clk 0:00:02]}  e4+ {[%clk 0:00:24]} 37. Ke2 {[%clk 0:00:01]}  Nc3+ {[%clk 0:00:24]} 0-1


[Site "https://www.chess.com"]

[Event "Titled Tuesday Blitz May 23 Late 2023"]
[White "Martinez Alcantara, Jose Eduardo"]
[Black "Pakleza, Zbigniew"]
[WhiteFideId "3805662"]
[BlackFideId "1119290"]
[WhiteElo "2711"]
[BlackElo "2410"]
[Result "1-0"]
[Round "06"]
[TimeControl "180+2"]
[Date "2023.05.23"]
[WhiteClock "0:00:24"]
[BlackClock "0:00:00"]

1. e4 {[%clk 0:03:00]}  e5 {[%clk 0:02:59]} 2. Nf3 {[%clk 0:03:00]}  d6 {[%clk 0:03:00]} 3. Nc3 {[%clk 0:02:58]}  Nf6 {[%clk 0:02:59]} 4. Bc4 {[%clk 0:02:58]}  Be7 {[%clk 0:02:59]} 5. d3 {[%clk 0:02:58]}  O-O {[%clk 0:02:59]} 6. a3 {[%clk 0:02:59]}  c6 {[%clk 0:02:59]} 7. Ba2 {[%clk 0:02:59]}  Be6 {[%clk 0:02:50]} 8. Bxe6 {[%clk 0:02:47]}  fxe6 {[%clk 0:02:51]} 9. O-O {[%clk 0:02:47]}  Qe8 {[%clk 0:02:44]} 10. h3 {[%clk 0:02:18]}  Nbd7 {[%clk 0:02:36]} 11. Ne2 {[%clk 0:02:16]}  Nh5 {[%clk 0:02:32]} 12. Ng3 {[%clk 0:02:01]}  Nf4 {[%clk 0:02:30]} 13. c3 {[%clk 0:01:56]}  Qg6 {[%clk 0:02:19]} 14. d4 {[%clk 0:01:45]}  exd4 {[%clk 0:01:56]} 15. cxd4 {[%clk 0:01:30]}  d5 {[%clk 0:01:50]} 16. Re1 {[%clk 0:01:25]}  Rae8 {[%clk 0:01:16]} 17. Kh2 {[%clk 0:01:22]}  Bd6 {[%clk 0:00:56]} 18. e5 {[%clk 0:01:23]}  Bc7 {[%clk 0:00:53]} 19. Bxf4 {[%clk 0:01:18]}  Rxf4 {[%clk 0:00:52]} 20. b4 {[%clk 0:01:19]}  Ref8 {[%clk 0:00:48]} 21. Rc1 {[%clk 0:01:14]}  Bb6 {[%clk 0:00:45]} 22. Rc3 {[%clk 0:01:08]}  h6 {[%clk 0:00:29]} 23. Ne2 {[%clk 0:01:05]}  R4f7 {[%clk 0:00:24]} 24. Qb3 {[%clk 0:01:00]}  a6 {[%clk 0:00:19]} 25. a4 {[%clk 0:00:58]}  Ba7 {[%clk 0:00:17]} 26. Rec1 {[%clk 0:00:50]}  Nb6 {[%clk 0:00:16]} 27. b5 {[%clk 0:00:49]}  axb5 {[%clk 0:00:15]} 28. axb5 {[%clk 0:00:50]}  Nc4 {[%clk 0:00:16]} 29. bxc6 {[%clk 0:00:46]}  bxc6 {[%clk 0:00:17]} 30. Rxc4 {[%clk 0:00:43]}  dxc4 {[%clk 0:00:18]} 31. Rxc4 {[%clk 0:00:43]}  Qe4 {[%clk 0:00:09]} 32. Qe3 {[%clk 0:00:43]}  Qd5 {[%clk 0:00:08]} 33. Ra4 {[%clk 0:00:43]}  Rxf3 {[%clk 0:00:05]} 34. gxf3 {[%clk 0:00:35]}  Rxf3 {[%clk 0:00:06]} 35. Nf4 {[%clk 0:00:34]}  Rxe3 {[%clk 0:00:03]} 36. Nxd5 {[%clk 0:00:35]}  Re2 {[%clk 0:00:03]} 37. Ne7+ {[%clk 0:00:35]}  Kf7 {[%clk 0:00:03]} 38. Nxc6 {[%clk 0:00:28]}  Bb6 {[%clk 0:00:03]} 39. Rb4 {[%clk 0:00:29]}  Rxf2+ {[%clk 0:00:01]} 40. Kg3 {[%clk 0:00:30]}  Bxd4 {[%clk 0:00:02]} 41. Nxd4 {[%clk 0:00:26]}  Rd2 {[%clk 0:00:03]} 42. Kf4 {[%clk 0:00:22]}  g5+ {[%clk 0:00:02]} 43. Ke4 {[%clk 0:00:23]}  Rh2 {[%clk 0:00:02]} 44. Rb7+ {[%clk 0:00:23]}  Kg6 {[%clk 0:00:02]} 45. Nxe6 {[%clk 0:00:23]}  Rxh3 {[%clk 0:00:03]} 46. Kd5 {[%clk 0:00:24]}  g4 {[%clk 0:00:02]} 47. Nf4+ {[%clk 0:00:25]}  Kf5 {[%clk 0:00:02]} 48. Rf7+ {[%clk 0:00:23]}  Kg5 {[%clk 0:00:02]} 49. Nxh3+ {[%clk 0:00:24]}  gxh3 {[%clk 0:00:00]} 50. e6 {[%clk 0:00:24]} 1-0


[Site "https://www.chess.com"]

[Event "Titled Tuesday Blitz May 23 Late 2023"]
[White "Hakobyan, Aram"]
[Black "Makridis, Dimitrios"]
[WhiteFideId "13306677"]
[BlackFideId "25864475"]
[WhiteElo "2584"]
[BlackElo "2277"]
[Result "1-0"]
[Round "06"]
[TimeControl "180+2"]
[Date "2023.05.23"]
[WhiteClock "0:02:03"]
[BlackClock "0:02:01"]

1. d4 {[%clk 0:03:00]}  Nf6 {[%clk 0:02:46]} 2. c4 {[%clk 0:03:00]}  e6 {[%clk 0:02:45]} 3. Nc3 {[%clk 0:03:01]}  d5 {[%clk 0:02:43]} 4. Nf3 {[%clk 0:02:59]}  h6 {[%clk 0:02:41]} 5. a3 {[%clk 0:02:54]}  dxc4 {[%clk 0:02:38]} 6. e4 {[%clk 0:02:49]}  a6 {[%clk 0:02:32]} 7. Bxc4 {[%clk 0:02:47]}  b5 {[%clk 0:02:32]} 8. Ba2 {[%clk 0:02:40]}  Be7 {[%clk 0:02:31]} 9. e5 {[%clk 0:02:38]}  Nd5 {[%clk 0:02:29]} 10. Nxd5 {[%clk 0:02:37]}  exd5 {[%clk 0:02:30]} 11. O-O {[%clk 0:02:35]}  Be6 {[%clk 0:02:29]} 12. Qc2 {[%clk 0:02:30]}  Nd7 {[%clk 0:02:29]} 13. Be3 {[%clk 0:02:30]}  O-O {[%clk 0:02:22]} 14. Bb1 {[%clk 0:02:27]}  f5 {[%clk 0:02:01]} 15. Qc6 {[%clk 0:02:03]} 1-0


[Site "https://www.chess.com"]